Cogmind - Beta 12 @@@ ROGUE MODE // 2023.04.09 @ 13:40:49 Player: Mr Goldstein Result: Destroyed by as-76132 with Assembled Rifle Performance ------------- Evolutions (0) 0 Regions Visited (3) 600 Robots Destroyed (20) 100 Value Destroyed (395) 395 Prototype IDs (23) 460 Alien Tech Used (0) 0 Bonus (300) 300 TOTAL SCORE: 1855 Bonus ------- Aligned with FarCom 300 Cogmind --------- Core Integrity 0/250 Matter 232/300 Energy 92/100 System Corruption 8% Temperature Cool (0) Movement Core (50) Location -10/Exiles Parts ------- > --- POWER (1) -------- (None) > --- PROPULSION (2) --- (None) > --- UTILITY (2) ------ Signal Interpreter > --- WEAPON (2) ------- (None) > --- INVENTORY (5) ---- Wheel Compact Wheel Compact Wheel Trap Reconfigurator Mining Claw Peak State ------------ > --- POWER ------------ Ion Engine > --- PROPULSION ------- Wheel Compact Wheel > --- UTILITY ---------- Huge Storage Unit Visual Processing Unit > --- WEAPON ----------- Light Assault Rifle Light Assault Rifle > --- INVENTORY -------- Ion Engine Wheel Wheel Compact Wheel Compact Wheel Compact Wheel Compact Wheel Heat Sink High-capacity Matter Pod Signal Interpreter Signal Interpreter Hacking Suite Trap Reconfigurator Medium Laser Light Assault Rifle Mining Claw [Rating: 10] Favorites ----------- Power Light Ion Engine Engine Light Ion Engine Propulsion Compact Wheel Wheel Compact Wheel Utility Huge Storage Unit Storage Huge Storage Unit Processor Targeting Computer Protection Light Armor Plating Weapon Light Assault Rifle Energy Gun Medium Laser Ballistic Gun Light Assault Rifle Build | -11 -10 -10 -10 ------- Run | Jun Mat Min Exi Slots Evolved . | . . . . Power . | . . . . Propulsion . | . . . . Utility . | . . . . Weapon . | . . . . Parts Attached 19 | 7 2 6 4 Power 3 | 1 . 1 1 Engine 3 | 1 . 1 1 Core . | . . . . Reactor . | . . . . Propulsion 4 | 2 . 1 1 Treads . | . . . . Leg . | . . . . Wheel 4 | 2 . 1 1 Hover . | . . . . Flight . | . . . . Utility 6 | 1 2 1 2 Device . | . . . . Storage 2 | 1 1 . . Processor 3 | . 1 . 2 Hackware . | . . . . Protection 1 | . . 1 . Artifact . | . . . . Weapon 6 | 3 . 3 . Energy Gun 1 | 1 . . . Energy Cannon . | . . . . Ballistic Gun 5 | 2 . 3 . Ballistic Cannon . | . . . . Launcher . | . . . . Special Weapon . | . . . . Impact Weapon . | . . . . Slashing Weapon . | . . . . Piercing Weapon . | . . . . Special Melee Weapon . | . . . . Unidentified Prototypes . | . . . . Parts Lost 9 | . . 9 . Power 2 | . . 2 . Propulsion 2 | . . 2 . Utility 2 | . . 2 . Weapon 3 | . . 3 . Highest Loss Streak 5 | . . 5 . To Critical Strikes . | . . . . Average Slot Usage (%) 96 | . 99 94 83 Engine 12 | . 14 12 2 Wheel 27 | . 28 25 26 Storage 13 | . 14 14 13 Processor 10 | . 13 . 14 Protection 3 | . . 11 . Ballistic Gun 27 | . 28 27 26 Naked Turns 1 | . . . 1 Heaviest Build 89 | 11 86 89 87 Greatest Support 32 | 32 32 32 26 Greatest Overweight (x) 5 | . 2 5 3 Average Overweight (x) 2 | . 1 3 2 Largest Inventory Capacity 25 | 8 25 25 25 Average Capacity 23 | 5 24 25 24 Most Carried 22 | 5 22 22 17 Average Carried 14 | 2 12 18 15 Final Capacity 25 | 8 25 25 5 Final Carried 22 | 2 22 18 5 Class Distribution -------------------- 100% | Mutant Dominant Class ---------------- Mutant | -10/Materials Mutant | -10/Mines Mutant | -10/Exiles Resources | -11 -10 -10 -10 ----------- Run | Jun Mat Min Exi Matter Collected 847 | 208 513 126 . Remotely . | . . . . Salvage Created 684 | . 559 125 . Parts 39 | . 38 1 . Haulers Intercepted 2 | . 2 . . Recyclers Shooed 1 | . 1 . . Parts Field Recycled . | . . . . Retrieved Matter . | . . . . Parts Self-Destructed . | . . . . Prevented . | . . . . Kills | -11 -10 -10 -10 ------- Run | Jun Mat Min Exi Combat Hostiles Destroyed 12 | . 7 5 . Guns 12 | . 7 5 . Classes Destroyed 9 | . 7 2 . Worker 2 | . 2 . . Hauler 2 | . 2 . . Recycler 2 | . 2 . . Operator 1 | . 1 . . Watcher 3 | . 3 . . Swarmer 3 | . 3 . . Grunt 6 | . 4 2 . Demolisher 1 | . . 1 . Assembled 2 | . . 2 . Best Kill Streak 4 | . 4 2 . Combat Bots Only 3 | . 3 2 . Max Kills in Single Turn 1 | . 1 1 . Gunslinging . | . . . . Exploded . | . . . . Melee . | . . . . Uniques/NPCs Destroyed . | . . . . Combat | -11 -10 -10 -10 -------- Run | Jun Mat Min Exi Damage Taken 935 | . 280 573 82 Core 251 | . 72 118 61 Absorbed by Shields . | . . . . Core Remaining (%) 100 | 100 . . . Volleys Fired 71 | . 54 17 . Largest 2 | . 2 2 . Hottest 40 | . 40 40 . Shots Fired 141 | . 107 33 1 Gun 141 | . 107 33 1 Cannon . | . . . . Launcher . | . . . . Special . | . . . . Kinetic 141 | . 107 33 1 Thermal . | . . . . Explosive . | . . . . Electromagnetic . | . . . . Robot Hit Streak 13 | . 13 12 . Robot Miss Streak 2 | . 2 1 1 Penetration Max . | . . . . Secondary Targets . | . . . . Shots Hit Robots 96 | . 73 23 . Core Hits 44 | . 32 12 . Critical Kills . | . . . . Critical Parts Destroyed 1 | . 1 . . Critical Strikes 1 | . 1 . . Destroy 1 | . 1 . . Melee Attacks . | . . . . Impact . | . . . . Slashing . | . . . . Piercing . | . . . . Sneak Attacks . | . . . . Combat Hostiles . | . . . . Follow-up Attacks . | . . . . Damage Inflicted 1027 | . 778 249 . Guns 1027 | . 778 249 . Cannons . | . . . . Explosions . | . . . . Melee . | . . . . Ramming . | . . . . Kinetic 1027 | . 778 249 . Thermal . | . . . . Explosive . | . . . . Electromagnetic . | . . . . Impact . | . . . . Slashing . | . . . . Piercing . | . . . . Highest Corruption 8 | . 3 8 8 Average Corruption 4 | . 2 7 8 Corruption Purged . | . . . . Corruption Blocked . | . . . . Effects 35 | . 10 16 9 Message Errors 8 | . 1 2 5 Matter Fused 9 | . 2 7 . Heat Flow Errors 9 | . 5 3 1 Energy Discharges 2 | . . 2 . Data Loss (minor) 3 | . . 1 2 Data Loss (major) 1 | . 1 . . Misfires 2 | . . 1 1 Weapon Failures 1 | . 1 . . Overload Shots . | . . . . Overflow Damage . | . . . . Projectiles . | . . . . Explosions . | . . . . Melee . | . . . . Knockbacks . | . . . . Impact . | . . . . Kinetic . | . . . . Secondary . | . . . . Self-Inflicted Damage . | . . . . Shots . | . . . . Rammed . | . . . . Targets Rammed . | . . . . Kicked . | . . . . Crushed . | . . . . Highest Temperature 262 | . 246 262 107 Average Temperature 94 | . 85 106 57 Received Heat Transfer 231 | . 108 123 . Effects 1 | . . 1 . Energy Bleed 1 | . . 1 . Siege Activations . | . . . . Robots Corrupted . | . . . . Combat Hostiles . | . . . . Parts Fried . | . . . . Impact Corruptions . | . . . . Robots Melted . | . . . . Combat Hostiles . | . . . . Parts Melted . | . . . . Heat Transferred . | . . . . Parts Sabotaged . | . . . . Parts Stolen . | . . . . Parts Stripped . | . . . . Power Chain Reactions . | . . . . Missiles Intercepted . | . . . . Alert | -11 -10 -10 -10 ------- Run | Jun Mat Min Exi Peak Influence 215 | . 215 50 . Initial 2 | . . 2 . Average 52 | . 69 24 . Maximum Alert Level 1 | . 1 . . Low Security (%) 97 | 100 96 100 . Level 1 2 | . 3 . . Level 2 . | . . . . Level 3 . | . . . . Level 4 . | . . . . Level 5 . | . . . . High Security . | . . . . Max Security . | . . . . Squads Dispatched 2 | . 2 . . Investigation . | . . . . Extermination . | . . . . Reinforcement 2 | . 2 . . Assault . | . . . . Garrison . | . . . . Intercept . | . . . . Searches Triggered . | . . . . Construction Impeded . | . . . . Haulers Reinforced . | . . . . Active Scanning Responses . | . . . . Cargo Convoy Interrupts . | . . . . Stealth | -11 -10 -10 -10 --------- Run | Jun Mat Min Exi Distress Signals . | . . . . Communications Jammed . | . . . . Distress Signals . | . . . . Times Spotted 33 | . 16 10 7 Peak Tracking Total 10 | . 3 6 10 Tactical Retreats 1 | . . 1 . Traps | -11 -10 -10 -10 ------- Run | Jun Mat Min Exi Traps Triggered 2 | . 2 . . Indirectly . | . . . . Trap Hack Attempts . | . . . . Triggered . | . . . . Disarmed . | . . . . Reprogrammed . | . . . . Reused . | . . . . Traps Extracted . | . . . . Installed . | . . . . Triggered . | . . . . Machines | -11 -10 -10 -10 ---------- Run | Jun Mat Min Exi Machines Disabled . | . . . . Max in Single Turn . | . . . . Machines Repaired . | . . . . Machines Sabotaged . | . . . . Overloaded Fab Kills . | . . . . Hacking | -11 -10 -10 -10 --------- Run | Jun Mat Min Exi Machines Accessed 8 | . 7 . 1 Terminals 6 | . 6 . . Fabricators . | . . . . Repair Stations . | . . . . Recycling Units 1 | . 1 . . Scanalyzers . | . . . . Garrison Access . | . . . . Total Hacks 19 | . 18 . 1 Successful 9 | . 8 . 1 Failed 10 | . 10 . . Catastrophic 2 | . 2 . . Database Lockouts . | . . . . Manual 14 | . 13 . 1 Terminals 15 | . 15 . . Fabricators . | . . . . Repair Stations . | . . . . Recycling Units 3 | . 3 . . Scanalyzers . | . . . . Garrison Access . | . . . . Terminal Hacks 5 | . 4 . 1 Robot Analysis 2 | . 2 . . Branch Access Points 1 | . 1 . . Hauler Manifests 1 | . 1 . . EX-Prototype ID Bank 1 | . . . 1 Fabricator Hacks . | . . . . Repair Station Hacks . | . . . . Recycling Unit Hacks . | . . . . Scanalyzer . | . . . . Garrison Access Hacks . | . . . . Unauthorized Hacks 4 | . 4 . . Terminals 3 | . 3 . . Botnet 3 | . 3 . . Fabricators . | . . . . Repair Stations . | . . . . Recycling Units 1 | . 1 . . Mask 1 | . 1 . . Scanalyzers . | . . . . Garrison Access . | . . . . Data Cores Recovered . | . . . . Used . | . . . . Hacking Detections 6 | . 6 . . Full Trace Events . | . . . . Feedback Events . | . . . . Feedback Blocked . | . . . . Robot Schematics Acquired . | . . . . Robots Built . | . . . . Authchips . | . . . . Time . | . . . . Total Robot Build Rating . | . . . . Part Schematics Acquired . | . . . . Parts Built . | . . . . Authchips . | . . . . Time . | . . . . Total Part Build Rating . | . . . . Parts Repaired . | . . . . Time . | . . . . Parts Recycled . | . . . . Recycled Matter . | . . . . Retrieved Matter . | . . . . Retrieved Components . | . . . . Parts Scanalyzed . | . . . . Part Schematics Acquired . | . . . . Parts Damaged . | . . . . Bothacking | -11 -10 -10 -10 ------------ Run | Jun Mat Min Exi Used RIF Installer . | . . . . Robots Hacked . | . . . . Non-combat . | . . . . Combat . | . . . . Robot Hacks Applied . | . . . . Relay Couplers Released . | . . . . Fabnet Peak Effective % . | . . . . Robots Rewired . | . . . . Allies Hacked . | . . . . Hacks Repelled . | . . . . Allies | -11 -10 -10 -10 -------- Run | Jun Mat Min Exi Total Allies . | . . . . Largest Group . | . . . . Highest-Rated Group . | . . . . Highest-Rated Ally . | . . . . Total Orders . | . . . . Ally Attacks . | . . . . Total Damage . | . . . . Kills . | . . . . Allies Corrupted . | . . . . Allies Melted 1 | . . 1 . Intel | -11 -10 -10 -10 ------- Run | Jun Mat Min Exi Robot Analysis Total 1 | . 1 . . Derelict Logs Recovered . | . . . . Drone Launches . | . . . . Drone Recoveries . | . . . . Exploration | -11 -10 -10 -10 ------------- Run | Jun Mat Min Exi Turns Passed 1731 | 58 987 475 211 Spaces Moved 1122 | 47 618 303 154 Core 20 | 16 . . 4 Treads . | . . . . Legs . | . . . . Wheels 1102 | 31 618 303 150 Hover . | . . . . Flight . | . . . . Fastest Speed 50 | 50 100 130 50 Average Speed 129 | 82 127 137 132 Slowest Speed 175 | 100 130 175 135 Overloaded Moves . | . . . . Propulsion Burnouts . | . . . . Robots Hopped . | . . . . Cave-ins Triggered . | . . . . Exploration Rate (%) 46 | 4 87 54 42 Regions Visited 3 Branch Regions 2 Pre-discovered Areas . | . . . . Known Exits Taken 1 | . 1 . . Unknown Exits Taken 2 | 1 . 1 . Scrap Searched 1 | . . 1 . Spaces Dug . | . . . . Terrain Destroyed . | . . . . Melee . | . . . . Projectile . | . . . . AOE . | . . . . Terrain Rammed . | . . . . Walls Destroyed . | . . . . Machines Disabled . | . . . . Actions | -11 -10 -10 -10 --------- Run | Jun Mat Min Exi Total 1274 | 64 718 332 160 Wait 31 | 4 22 5 . Move 1119 | 46 617 302 154 Hop . | . . . . Pick Up 33 | 7 22 2 2 Fast Attach 1 | 1 . . . Attach 16 | 5 1 6 4 Detach . | . . . . Swap 2 | 1 1 . . Drop 1 | . 1 . . Fire 71 | . 54 17 . Melee . | . . . . Ram . | . . . . Kick . | . . . . Crush . | . . . . Escape Stasis . | . . . . Rewire . | . . . . Trap . | . . . . Miscellaneous . | . . . . Route ------- -11/Junkyard -10/Materials (discovered 3 exits: [*Mat x2] / *Min) -10/Mines (discovered 2 exits: [*Mat] / *Exi) -10/Exiles History --------- Turn | Location | Event 7 | -11/Junkyard | Discovered new exit (range 15) 59 | -11/Junkyard | Entered Materials 96 | -10/Materials | Identified exit to Mines 302 | -10/Materials | Build established: Mutant 595 | -10/Materials | Discovered new exit (range 15) 888 | -10/Materials | Discovered new exit (range 8) 1046 | -10/Materials | Entered Mines 1047 | -10/Mines | Assembled infested the area 1052 | -10/Mines | Assisted by a Guerilla fighting off Assembled 1110 | -10/Mines | Lost 3 parts (1p1n1u) 1264 | -10/Mines | Discovered new exit (range 15) 1472 | -10/Mines | Core integrity fell below 50% 1510 | -10/Mines | Lost 5 parts (1p1n1u2w) 1512 | -10/Mines | Deemed a non-threat by the Exiles lab entrance 1514 | -10/Mines | Discovered new exit (range 5) 1521 | -10/Mines | Entered Exiles 1556 | -10/Exiles | Met 8R-AWN 1577 | -10/Exiles | Met EX-HEX 1621 | -10/Exiles | Met EX-BIN 1637 | -10/Exiles | Aligned with FarCom system 1638 | -10/Exiles | Given EX-Vault access code 1669 | -10/Exiles | Opened EX-Vault 1679 | -10/Exiles | Found Trap Reconfigurator 1709 | -10/Exiles | Warned to stay clear of 0b10 Research branches 1721 | -10/Exiles | Attacked by the Exiles 1728 | -10/Exiles | Released all parts (7) 1730 | -10/Exiles | Core integrity fell below 20% 1732 | -10/Exiles | Destroyed by as-76132 with Assembled Rifle Last Messages --------------- really want to. And if we have to leave here due to unforeseen circumstances, don't worry the FarCom system will continue to maintain contact via our distributed network. EX-BIN: And don't even think about spreading that code around. We're gonna change it right after you leave. Most certainly not to something like 1234 which I did last time as a little joke and some thief managed to sneak in here and steal a few of HEX's prototypes. 01721_ System corrupted: FCS attempts to trigger Lgt. Assault Rifle. 01721_ System corrupted: Lgt. Assault Rifle misfires. 01721_ EXILES: Hostile robot within lab perimeter. Defensive protocols time, folks! 01723_ EX-BIN: "I just want to science!" 01728_ Released Ion Engine. 01728_ Released Lgt. Assault Rifle. 01728_ Released Com. Wheel. 01728_ Released Huge Storage Unit. 01728_ Released Wheel. 01728_ Released Visual Processing Unit. 01730_ Acquired Trap Reconfigurator. 01732_ Machine disabled. Map ----- +----------------------------------------------------+ | ????????????????#####??# #??"""""#???????????? | | ????????????????""""""?# #???####????????????? | | ???????????????#"""" ## #???????????????????? | | ???????????????#""X" #???????????????????? | | ???????????????#" #???????????????????? | | ???????????????#" ## #???????????????????? | | ???????????????#""""""?# #?#########?????????? | | ???????????????##"###??# #?#"""""""#?????????? | | ???????????????? ??????# #?#"""""""#?????????? | | ???????????????????????# #?#"""""""#?????????? | | ??????????????????????## ###"" """"#?????????? | | ??????????????????????#" """"#?????????? | | ??????????????????????#" """#?????????? | | ??????????????????????#" """#?????????? | | ??????????????????????#" """#?????????? | | ??????????????????????#" """#?????????? | | ??????????????????????#" """#?????????? | | ??????????????????????## """""????????? | | ???????????????????????# """##????????? | | ???????????????????????#" "X" """""????????? | | ???????????????????????#" """ #?????????? | | ???????????????????????#"*[ """""""""#?????????? | | ??????????????????????##"[!= ###########?????????? | | ?????????????????????##""*[ =#???????????????????? | | ??????????????????####""!=!= #???????????????????? | | ?????????????????"""""" !@[ ##??????????????????? | | ????????????????""" " ""c ##???###########???? | | ??????????????" """ " #####"""""""""##??? | | ??????????????" " a " """ """"##?? | | ??????????? "" " #?? | | ??????????? " """#?? | | ??????????? " "#?? | | ???????????? a " "##? | | ???????????? ""## | | ???????????? """""" """ | | ????????????? ######""" a " | | ????????????? ""#?????#####"""aaaa | | ?????????????? """#??????????##""" | | ??????????????????????????????#"""" | | ??????????????????????????????#"" | | ??????????????????????????????"""" | | ?????????????????????????????" | | ???????????????????????????" | | ??????????????????????????? | | ??????????????????????????? | | ?????????????????????????? " | | ??????????????????????????? "" """ " | | ???????????????????????????##""" " " ""#" " | | ?????????????????????????????####""" """##"""""""# | | ????????????????????????????????###""""??######### | +----------------------------------------------------+ Best States ------------- Heat Dissipation 25 Energy Generation 10 Energy Capacity 250 Matter Stores 300 Matter Capacity 300 Sight Range 18 Terrain Scan Density 10 Armor Coverage 150 Evasion (%) 50 Targeting Accuracy 5 Item Schematics ----------------- None Robot Schematics ------------------ None Fabricated ------------ Nothing Alien Tech Used ----------------- None Achievements -------------- None Challenges ------------ None Game ------ Seed NavigationNullVibroblade Manual? 0 Play Time 00:15:16 Cumulative 85.0 hours Start 2023.04.09 @ 13:21:15 End 2023.04.09 @ 13:40:49 Sessions 1 Manual Loads 0 Difficulty Rogue Special Mode None Game No. 106 Rogue 106 Adventurer 0 Explorer 0 Win Type - Total 2 Types 2/0/0/0/0/0/0/0/0 Lore% 52 Gallery% 52 Achievement% 44 Wizard Run 0 Options --------- ASCII 0 Keyboard 0 Movement Arrows Keybinds 0 Fullscreen 1 Font 12/Smallcaps Map View 83x54 Tactical HUD 1 Map Filters NONE Filters NONE Steam 1 RUN: b86a2d56-41a0-476a-b243-c9ace9021ae6